fUST/lending_fUST_20251130
["ID","MTS","AMOUNT","RATE_DAILY","PERIOD"]
[395125020,1764458344921,-500.0,0.00010432,2]
[395125021,1764458344944,-500.0,0.00010432,2]
[395125022,1764458344965,-500.0,0.00010432,2]
[395125023,1764458344988,-500.0,0.00010432,2]
[395125024,1764458345010,-259.01947226,0.00010432,2]
[395125025,1764458345032,-291.2831512,0.00010432,2]
[395125026,1764458345053,-49256.6064255,0.00010433,2]
[395125027,1764458351115,-415.67795391,9.817e-05,2]
[395125028,1764458383111,-743.3935745,0.00010433,2]
[395125029,1764458383133,-243.92554534,0.00010434,2]
[395125030,1764458383156,-500.0,0.00010434,2]
[395125031,1764458383181,-500.0,0.00010434,2]
[395125032,1764458383208,-160.59609219,0.00010434,2]
[395125033,1764458383235,-47852.08478797,0.00010435,2]
[395125034,1764458402224,300.0,0.00010434,2]
[395125035,1764458403915,236.0,0.00010435,2]
[395125036,1764458410753,-50000.0,0.00010435,2]
[395125037,1764458412835,-50000.0,0.00010435,2]
[395125038,1764458431769,421.25368347,0.00010434,2]
[395125039,1764458431820,362.11327469,0.00010434,2]
[395125040,1764458434023,-50000.0,0.00010435,2]
[395125041,1764458437136,-50000.0,0.00010435,2]
[395125042,1764458438992,-50000.0,0.00010435,2]
[395125043,1764458462311,300.0,0.00010434,2]
[395125044,1764458474560,1087.00934894,8.907e-05,2]
[395125045,1764458474599,151.02,0.00010435,2]
[395125046,1764458475244,1087.00934894,9.437e-05,2]
[395125047,1764458475883,1087.00934894,9.967e-05,2]
[395125048,1764458489080,-50000.0,0.00010435,2]
[395125049,1764458491775,-50000.0,0.00010435,2]
[395125050,1764458493041,-50000.0,0.00010435,2]
[395125052,1764458494185,-50000.0,0.00010435,2]
[395125054,1764458504088,384.971,0.00010227,2]
[395125055,1764458522620,300.0,0.00010434,2]
[395125056,1764458537151,210.62717516,8.907e-05,2]
[395125057,1764458539131,-50000.0,0.00010435,2]
[395125058,1764458546395,-50000.0,0.00010435,2]
[395125059,1764458556262,-50000.0,0.00010435,2]
[395125062,1764458595752,1439.65462678,0.00010331,2]
[395125063,1764458603509,230.87294003,0.00010331,2]
[395125065,1764458634913,184.06401235,0.00010392,2]
[395125066,1764458642279,300.0,0.00010434,2]
[395125067,1764458701400,744.41932034,9.232e-05,2]
[395125068,1764458702511,300.0,0.00010434,2]
[395125069,1764458706342,250.0,0.000107,3]
[395125070,1764458762654,300.0,0.00010434,2]
[395125071,1764458769852,333.92543334,8.907e-05,2]
[395125072,1764458770531,240.06048702,0.00010067,2]
[395125073,1764458770556,93.86494632,0.00010067,2]
[395125074,1764458787979,9906.14505368,9.853e-05,2]
[395125075,1764458788005,10000.01,9.853e-05,2]
[395125076,1764458788028,10000.01,9.853e-05,2]
[395125077,1764458788051,8020.33351092,9.853e-05,2]
[395125078,1764458806520,185.93190797,0.00010364,2]
[395125079,1764458822252,300.0,0.00010434,2]
[395125082,1764458882604,300.0,0.00010434,2]
[395125090,1764458927449,1193.74458111,0.00010335,2]
[395125091,1764458927476,10000.01,0.00010335,2]
[395125092,1764458927504,10000.01,0.00010335,2]
[395125093,1764458927530,10000.01,0.00010335,2]
[395125094,1764458927558,10000.01,0.00010335,2]
[395125095,1764458927584,10000.01,0.00010335,2]
[395125096,1764458927611,10000.01,0.00010335,2]
[395125097,1764458927638,10000.01,0.00010335,2]
[395125098,1764458927665,10000.01,0.00010335,2]
[395125099,1764458927691,10000.01,0.00010335,2]
[395125100,1764458936659,235.24295345,8.907e-05,2]
[395125101,1764458938059,-311.36418976,9.232e-05,2]
[395125102,1764458942805,182.62857708,8.907e-05,2]
[395125103,1764458946128,-300.0,0.00010334,2]
[395125104,1764458946151,-4379.1481018,0.00010335,2]
[395125105,1764458950084,-197.89420377,0.00010231,2]
[395125106,1764458950116,-102.10579623,0.00010231,2]
[395125107,1764458950139,-19558.29795137,0.00010335,2]
[395125108,1764458956971,787.37787946,0.00010232,2]
[395125109,1764458960300,-481.78271788,0.00010335,2]
[395125110,1764458963576,-217.23522045,0.00010335,2]
[395125111,1764458966158,-349.21028602,0.00010335,2]
[395125112,1764458968666,-298.39943011,0.00010335,2]
[395125113,1764458972201,-50296.50119997,0.00010335,2]
[395125114,1764458972467,9212.63212054,0.00010232,2]
[395125115,1764458972493,10000.01,0.00010232,2]
[395125116,1764458972519,10000.01,0.00010232,2]
[395125117,1764458972544,10000.01,0.00010232,2]
[395125118,1764458972568,10000.01,0.00010232,2]
[395125119,1764458972592,10000.01,0.00010232,2]
[395125120,1764458972615,10000.01,0.00010232,2]
[395125121,1764458972639,4540.88359374,0.00010232,2]
[395125122,1764458972769,-217.33618788,0.00010335,2]
[395125123,1764458977658,-660.4480607,0.00010335,2]
[395125124,1764458980817,-396.0,0.00010335,2]
[395125125,1764458983007,-500.0,0.00010335,2]
[395125128,1764458983656,263.23668072,8.907e-05,2]
[395125129,1764458984523,263.23668072,0.000101,2]
[395125130,1764458986192,-647.60971613,0.00010335,2]
[395125131,1764458988534,-13614.80892965,0.00010335,2]
[395125132,1764458992574,-1170.6084501,0.00010335,2]
[395125133,1764458992677,-10000.01,0.00010335,2]
[395125134,1764458992883,-10000.01,0.00010335,2]
[395125135,1764458992954,-10000.01,0.00010335,2]
[395125136,1764458993087,-10000.01,0.00010335,2]
[395125137,1764458993204,-10000.01,0.00010335,2]
[395125138,1764458993364,-10000.01,0.00010335,2]
[395125139,1764458993510,-10000.01,0.00010335,2]
[395125140,1764458994728,-10000.01,0.00010335,2]
[395125141,1764458994850,-10000.01,0.00010232,2]
[395125142,1764458995052,-316.84937055,0.00010232,2]
[395125143,1764458995091,-9366.3112589,0.00010335,2]
[395125144,1764458995520,-10000.01,0.00010335,2]
[395125145,1764458995667,-10000.01,0.00010335,2]
[395125146,1764458995777,-10000.01,0.00010335,2]
[395125147,1764458995890,-10000.01,0.00010335,2]
[395125148,1764458996026,-10000.01,0.00010335,2]
[395125149,1764458996139,-10000.01,0.00010335,2]
[395125150,1764458996264,-10000.01,0.00010335,2]
[395125151,1764459005207,314.48764574,0.00010492,3]
[395125180,1764459031727,-497.43063642,0.00010029,2]
[395125182,1764459031736,-497.43063642,0.0001013,2]
[395125184,1764459031747,-11.66872716,0.00010232,2]
[395125192,1764459031812,-485.76190926,0.00010232,2]
[395125194,1764459031821,-300.0,0.00010334,2]
[395125196,1764459031830,-235.0,0.00010335,2]
[395125197,1764459031839,-52400.18892117,0.00010335,2]
[395125199,1764459031850,-269.3080843,0.00010335,2]
[395125202,1764459031861,-493982.82090246,0.00010335,2]
[395125204,1764459031870,-419.54959751,0.000104,2]
[395125206,1764459031880,-500.0,0.00010434,2]
[395125208,1764459031890,-500.0,0.00010434,2]
[395125210,1764459031899,-500.0,0.00010434,2]
[395125212,1764459031910,-185.95912238,0.00010434,2]
[395125214,1764459031920,-151.0,0.00010435,2]
[395125216,1764459031929,-151.0,0.00010435,2]
[395125218,1764459031938,-1087.00934894,0.00010497,2]
[395125220,1764459031951,-999.0,0.00010959,2]
[395125222,1764459031960,-500.0,0.00010959,2]
[395125224,1764459031969,-504.44305669,0.00010959,2]
[395125226,1764459031978,-504.44305669,0.00010959,2]
[395125228,1764459031990,-504.44305669,0.00010959,2]
[395125230,1764459031999,-504.44305669,0.00010959,2]
[395125232,1764459032008,-504.44305669,0.00010959,2]
[395125234,1764459032017,-504.44305669,0.00010959,2]
[395125236,1764459032029,-504.44305669,0.00010959,2]
[395125238,1764459032039,-504.44305669,0.00010959,2]
[395125240,1764459032048,-504.44305669,0.00010959,2]
[395125242,1764459032058,-504.44305669,0.00010959,2]
[395125244,1764459032069,-504.44305669,0.00010959,2]
[395125246,1764459032078,-504.44305669,0.00010959,2]
[395125248,1764459032089,-504.44305669,0.00010959,2]
[395125250,1764459032099,-504.44305669,0.00010959,2]
[395125252,1764459032109,-504.44305669,0.00010959,2]
[395125254,1764459032118,-504.44305669,0.00010959,2]
[395125256,1764459032127,-504.44305669,0.00010959,2]
[395125258,1764459032137,-504.44305669,0.00010959,2]
[395125260,1764459032146,-504.44305669,0.00010959,2]
[395125262,1764459032156,-504.44305669,0.00010959,2]
[395125264,1764459032166,-504.44305669,0.00010959,2]
[395125266,1764459032175,-632.73840263,0.00010959,2]
[395125268,1764459032184,-632.73840263,0.00010959,2]
[395125270,1764459032193,-632.73840263,0.00010959,2]
[395125272,1764459032202,-632.73840263,0.00010959,2]
[395125274,1764459032211,-632.73840263,0.00010959,2]
[395125276,1764459032223,-632.73840263,0.00010959,2]
[395125278,1764459032232,-632.73840263,0.00010959,2]
[395125280,1764459032242,-632.73840263,0.00010959,2]
[395125282,1764459032251,-632.73840263,0.00010959,2]
[395125284,1764459032260,-632.73840263,0.00010959,2]
[395125286,1764459032269,-500.0,0.00010959,2]
[395125288,1764459032278,-500.0,0.00010959,2]
[395125290,1764459032288,-500.0,0.00010959,2]
[395125292,1764459032297,-500.0,0.00010959,2]
[395125294,1764459032306,-500.0,0.00010959,2]
[395125296,1764459032315,-500.0,0.00010959,2]
[395125298,1764459032324,-500.0,0.00010959,2]
[395125300,1764459032334,-500.0,0.00010959,2]
[395125302,1764459032343,-500.0,0.00010959,2]
[395125304,1764459032354,-500.0,0.00010959,2]
[395125306,1764459032363,-500.0,0.00010959,2]
[395125308,1764459032373,-500.0,0.00010959,2]
[395125310,1764459032382,-500.0,0.00010959,2]
[395125312,1764459032391,-500.0,0.00010959,2]
[395125314,1764459032401,-500.0,0.00010959,2]
[395125316,1764459032410,-500.0,0.00010959,2]
[395125318,1764459032420,-500.0,0.00010959,2]
[395125320,1764459032429,-500.0,0.00010959,2]
[395125322,1764459032438,-500.0,0.00010959,2]
[395125324,1764459032448,-500.0,0.00010959,2]
[395125326,1764459032457,-500.0,0.00010959,2]
[395125328,1764459032466,-500.0,0.00010959,2]
[395125330,1764459032475,-500.0,0.00010959,2]
[395125332,1764459032485,-500.0,0.00010959,2]
[395125334,1764459032495,-500.0,0.00010959,2]
[395125336,1764459032504,-500.0,0.00010959,2]
[395125338,1764459032514,-500.0,0.00010959,2]
[395125340,1764459032523,-500.0,0.00010959,2]
[395125342,1764459032532,-500.0,0.00010959,2]
[395125344,1764459032541,-500.0,0.00010959,2]
[395125346,1764459032551,-500.0,0.00010959,2]
[395125348,1764459032560,-500.0,0.00010959,2]
[395125350,1764459032570,-500.0,0.00010959,2]
[395125352,1764459032579,-500.0,0.00010959,2]
[395125354,1764459032588,-500.0,0.00010959,2]
[395125356,1764459032598,-500.0,0.00010959,2]
[395125358,1764459032607,-500.0,0.00010959,2]
[395125360,1764459032616,-500.0,0.00010959,2]
[395125362,1764459032626,-500.0,0.00010959,2]
[395125364,1764459032635,-500.0,0.00010959,2]
[395125366,1764459032644,-500.0,0.00010959,2]
[395125368,1764459032654,-500.0,0.00010959,2]
[395125370,1764459032663,-500.0,0.00010959,2]
[395125372,1764459032672,-500.0,0.00010959,2]
[395125374,1764459032683,-500.0,0.00010959,2]
[395125376,1764459032692,-500.0,0.00010959,2]
[395125378,1764459032701,-500.0,0.00010959,2]
[395125380,1764459032711,-500.0,0.00010959,2]
[395125383,1764459032720,-500.0,0.00010959,2]
[395125385,1764459032729,-500.0,0.00010959,2]
[395125387,1764459032741,-500.0,0.00010959,2]
[395125388,1764459032751,-500.0,0.00010959,2]
[395125390,1764459032760,-500.0,0.00010959,2]
[395125392,1764459032771,-500.0,0.00010959,2]
[395125394,1764459032780,-281.50263448,0.00010959,2]
[395125395,1764459032789,-500.0,0.00010959,2]
[395125396,1764459032798,-500.0,0.00010959,2]
[395125397,1764459032807,-500.0,0.00010959,2]
[395125398,1764459032816,-500.0,0.00010959,2]
[395125399,1764459032825,-500.0,0.00010959,2]
[395125400,1764459032834,-500.0,0.00010959,2]
[395125401,1764459032843,-500.0,0.00010959,2]
[395125402,1764459032852,-500.0,0.00010959,2]
[395125403,1764459032861,-500.0,0.00010959,2]
[395125404,1764459032871,-500.0,0.00010959,2]
[395125405,1764459032881,-500.0,0.00010959,2]
[395125406,1764459032890,-500.0,0.00010959,2]
[395125407,1764459032899,-500.0,0.00010959,2]
[395125408,1764459032908,-500.0,0.00010959,2]
[395125409,1764459032917,-500.0,0.00010959,2]
[395125410,1764459032926,-500.0,0.00010959,2]
[395125411,1764459033116,-500.0,0.00010959,2]
[395125412,1764459033129,-500.0,0.00010959,2]
[395125413,1764459033139,-500.0,0.00010959,2]
[395125414,1764459033148,-500.0,0.00010959,2]
[395125415,1764459033158,-500.0,0.00010959,2]
[395125416,1764459033167,-500.0,0.00010959,2]
[395125417,1764459033176,-500.0,0.00010959,2]
[395125418,1764459033185,-500.0,0.00010959,2]
[395125419,1764459033196,-500.0,0.00010959,2]
[395125420,1764459033205,-500.0,0.00010959,2]
[395125421,1764459033214,-500.0,0.00010959,2]
[395125422,1764459033223,-500.0,0.00010959,2]
[395125423,1764459033233,-500.0,0.00010959,2]
[395125424,1764459033242,-500.0,0.00010959,2]
[395125425,1764459033252,-500.0,0.00010959,2]
[395125426,1764459033261,-500.0,0.00010959,2]
[395125427,1764459033271,-500.0,0.00010959,2]
[395125428,1764459033280,-183.5237103,0.00010959,2]
[395125429,1764459033289,-500.0,0.00010959,2]
[395125430,1764459033298,-500.0,0.00010959,2]
[395125431,1764459033307,-500.0,0.00010959,2]
[395125432,1764459033318,-500.0,0.00010959,2]
[395125433,1764459033327,-500.0,0.00010959,2]
[395125434,1764459033336,-500.0,0.00010959,2]
[395125435,1764459033345,-500.0,0.00010959,2]
[395125436,1764459033354,-500.0,0.00010959,2]
[395125437,1764459033364,-500.0,0.00010959,2]
[395125438,1764459033374,-500.0,0.00010959,2]
[395125439,1764459033384,-500.0,0.00010959,2]
[395125440,1764459033393,-500.0,0.00010959,2]
[395125441,1764459033403,-500.0,0.00010959,2]
[395125442,1764459033412,-480.22166013,0.00010959,2]
[395125443,1764459033421,-500.0,0.00010959,2]
[395125444,1764459033431,-500.0,0.00010959,2]
[395125445,1764459033440,-500.0,0.00010959,2]
[395125446,1764459033449,-500.0,0.00010959,2]
[395125447,1764459033459,-500.0,0.00010959,2]
[395125448,1764459033468,-500.0,0.00010959,2]
[395125449,1764459033477,-500.0,0.00010959,2]
[395125450,1764459033486,-500.0,0.00010959,2]
[395125451,1764459033496,-500.0,0.00010959,2]
[395125452,1764459033505,-500.0,0.00010959,2]
[395125453,1764459033514,-49277.56767534,0.00010996,2]
[395125454,1764459033522,-1087.00934894,0.00011027,2]
[395125455,1764459033532,-182.62857708,0.00011198,2]
[395125456,1764459033541,-333.92543334,0.00011227,2]
[395125457,1764459033551,-500.0,0.00011233,2]
[395125458,1764459033560,-263.23668072,0.00011292,2]
[395125459,1764459033569,-210.62717516,0.00011295,2]
[395125460,1764459033579,-420.0,0.00011364,2]
[395125461,1764459033588,-1000.0,0.00011475,2]
[395125462,1764459033597,-1000.0,0.00011475,2]
[395125463,1764459033606,-1000.0,0.00011475,2]
[395125464,1764459033615,-1000.0,0.00011475,2]
[395125465,1764459033624,-1000.0,0.00011475,2]
[395125466,1764459033634,-1000.0,0.00011475,2]
[395125467,1764459033643,-1000.0,0.00011475,2]
[395125468,1764459033653,-500.0,0.00011475,2]
[395125469,1764459033663,-500.0,0.00011475,2]
[395125470,1764459033672,-1000.0,0.00011475,2]
[395125471,1764459033681,-500.0,0.00011475,2]
[395125472,1764459033691,-500.0,0.00011475,2]
[395125473,1764459033701,-500.0,0.00011475,2]
[395125474,1764459033710,-1000.0,0.00011475,2]
[395125475,1764459033720,-500.0,0.00011475,2]
[395125476,1764459033729,-500.0,0.00011475,2]
[395125477,1764459033738,-1000.0,0.00011475,2]
[395125478,1764459033748,-500.0,0.00011475,2]
[395125479,1764459033757,-500.0,0.00011475,2]
[395125480,1764459033767,-1000.0,0.00011475,2]
[395125481,1764459033777,-500.0,0.00011475,2]
[395125482,1764459033786,-1000.0,0.00011475,2]
[395125483,1764459033796,-500.0,0.00011475,2]
[395125484,1764459033806,-500.0,0.00011475,2]
[395125485,1764459033816,-1000.0,0.00011475,2]
[395125486,1764459033829,-500.0,0.00011475,2]
[395125487,1764459033839,-500.0,0.00011475,2]
[395125488,1764459033849,-1000.0,0.00011475,2]
[395125489,1764459033858,-598.01426306,0.00011475,2]
[395125490,1764459033868,-1000.0,0.00011475,2]
[395125491,1764459033878,-1000.0,0.00011475,2]
[395125492,1764459033888,-1000.0,0.00011475,2]
[395125493,1764459033899,-248.71531821,0.00011475,2]
[395125494,1764459033908,-1000.0,0.00011475,2]
[395125495,1764459033917,-1000.0,0.00011475,2]
[395125496,1764459033927,-1116.37455399,0.00011475,2]
[395125497,1764459033936,-151.0,0.00011475,2]
[395125498,1764459033950,-305.97565523,0.00011475,2]
[395125499,1764459033961,-500.0,0.00011507,2]
[395125500,1764459033971,-1087.00934894,0.00011558,2]
[395125501,1764459033980,-618.1037147,0.00011676,2]
[395125502,1764459033991,-159.283891,0.00011735,2]
[395125503,1764459034001,-500.0,0.00011781,2]
[395125504,1764459034010,-235.26713756,0.00011876,2]
[395125505,1764459034024,-169562.79031544,0.0001191,2]
[395125506,1764459034033,-630.0,0.00011992,2]
[395125507,1764459034043,-990.0,0.00011992,2]
[395125508,1764459034053,-2153.0,0.00011992,2]
[395125509,1764459034062,-414.0,0.00011992,2]
[395125510,1764459034072,-414.0,0.00011992,2]
[395125511,1764459034083,-822.6133755,0.00012004,2]
[395125512,1764459034093,-257.91778498,0.00012023,2]
[395125513,1764459034102,-500.0,0.00012055,2]
[395125514,1764459034111,-1087.00934894,0.00012088,2]
[395125515,1764459034120,-266.39786749,0.00012099,2]
[395125516,1764459034130,-240.05,0.00012329,2]
[395125517,1764459034139,-248.05,0.00012329,2]
[395125518,1764459034148,-206.71,0.00012329,2]
[395125519,1764459034158,-206.71,0.00012329,2]
[395125520,1764459034167,-172.26,0.00012329,2]
[395125521,1764459034176,-654.62,0.00012329,2]
[395125522,1764459034185,-500.0,0.00012329,2]
[395125523,1764459034194,-744.41932034,0.00012383,2]
[395125524,1764459034203,-333.92543334,0.00012388,2]
[395125525,1764459034212,-495.06852506,0.000124,2]
[395125526,1764459034222,-263.23668072,0.00012485,2]
[395125527,1764459034231,-587.0,0.00012496,2]
[395125528,1764459034240,-1834.04482764,0.000125,2]
[395125529,1764459034250,-267.46074303,0.00012571,2]
[395125530,1764459034259,-500.0,0.00012603,2]
[395125531,1764459034268,-1087.00934894,0.00012618,2]
[395125532,1764459034278,-398.51749365,0.00012817,2]
[395125533,1764459034287,-500.0,0.00012877,2]
[395125534,1764459034297,-7104.53155357,0.00013,2]
[395125535,1764459034306,-277.35679052,0.00013119,2]
[395125536,1764459034315,-1087.00934894,0.00013148,2]
[395125537,1764459034324,-500.0,0.00013151,2]
[395125538,1764459034335,-159.283891,0.00013233,2]
[395125539,1764459034344,-500.0,0.00013273,2]
[395125540,1764459034353,-500.0,0.00013273,2]
[395125541,1764459034363,-500.0,0.00013273,2]
[395125542,1764459034372,-500.0,0.00013273,2]
[395125543,1764459034381,-500.0,0.00013273,2]
[395125544,1764459034390,-345.68770136,0.00013273,2]
[395125545,1764459034400,-500.0,0.00013273,2]
[395125546,1764459034410,-500.0,0.00013273,2]
[395125547,1764459034420,-500.0,0.00013273,2]
[395125548,1764459034429,-500.0,0.00013273,2]
[395125549,1764459034439,-506.01992005,0.00013273,2]
[395125550,1764459034447,-282.25918948,0.00013273,2]
[395125551,1764459034457,-500.0,0.00013273,2]
[395125552,1764459034466,-500.0,0.00013273,2]
[395125553,1764459034475,-216.21279886,0.00013273,2]
[395125554,1764459034484,-500.0,0.00013273,2]
[395125555,1764459034494,-500.0,0.00013273,2]
[395125556,1764459034503,-500.0,0.00013273,2]
[395125557,1764459034512,-478.39080992,0.00013273,2]
[395125558,1764459034521,-500.0,0.00013273,2]
[395125559,1764459034530,-500.0,0.00013273,2]
[395125560,1764459034539,-500.5585097,0.00013273,2]
[395125561,1764459034548,-500.0,0.00013273,2]
[395125562,1764459034557,-500.0,0.00013273,2]
[395125563,1764459034566,-500.0,0.00013273,2]
[395125564,1764459034575,-500.0,0.00013273,2]
[395125565,1764459034584,-500.0,0.00013273,2]
[395125566,1764459034593,-500.0,0.00013273,2]
[395125567,1764459034604,-500.0,0.00013273,2]
[395125568,1764459034614,-500.0,0.00013273,2]
[395125569,1764459034623,-500.0,0.00013273,2]
[395125570,1764459034632,-164.88898097,0.00013273,2]
[395125571,1764459034642,-512.47457159,0.00013273,2]
[395125572,1764459034651,-500.0,0.00013273,2]
[395125573,1764459034660,-500.0,0.00013273,2]
[395125574,1764459034671,-500.0,0.00013273,2]
[395125575,1764459034681,-500.45448968,0.00013273,2]
[395125576,1764459034692,-500.0,0.00013273,2]
[395125577,1764459034702,-500.0,0.00013273,2]
[395125578,1764459034712,-500.0,0.00013273,2]
[395125579,1764459034720,-500.0,0.00013273,2]
[395125580,1764459034729,-500.0,0.00013273,2]
[395125581,1764459034739,-500.0,0.00013273,2]
[395125582,1764459034748,-500.0,0.00013273,2]
[395125583,1764459034757,-500.0,0.00013273,2]
[395125584,1764459034765,-500.0,0.00013273,2]
[395125585,1764459034775,-500.0,0.00013273,2]
[395125586,1764459034784,-500.0,0.00013273,2]
[395125587,1764459034792,-158.28169385,0.00013273,2]
[395125588,1764459034802,-500.0,0.00013273,2]
[395125589,1764459034811,-264.01757802,0.00013273,2]
[395125590,1764459034820,-500.0,0.00013273,2]
[395125591,1764459034829,-500.0,0.00013273,2]
[395125592,1764459034838,-500.0,0.00013273,2]
[395125593,1764459034847,-325.17434187,0.00013273,2]
[395125594,1764459034856,-455.44856417,0.00013287,2]
[395125595,1764459034865,-159.283891,0.000133,3]
[395125596,1764459034875,-159.283891,0.000133,3]
[395125597,1764459034885,-159.283891,0.000133,3]
[395125598,1764459034894,-159.283891,0.000133,3]
[395125599,1764459034903,-151.0,0.000134,2]
[395125600,1764459034912,-500.0,0.00013425,2]
[395125601,1764459034921,-235.4781964,0.00013489,2]
[395125602,1764459034931,-182.81120566,0.00013489,2]
[395125603,1764459034941,-334.25935878,0.00013548,2]
[395125604,1764459034952,-10000.0,0.00013598,2]
[395125605,1764459034962,-250.0,0.00013656,2]
[395125606,1764459034972,-287.61899177,0.00013667,2]
[395125607,1764459034981,-300.0,0.00013673,2]
[395125608,1764459034990,-1088.09635829,0.00013678,2]
[395125609,1764459034999,-263.4999174,0.00013678,2]
[395125610,1764459035008,-210.83780233,0.00013683,2]
[395125611,1764459035017,-500.0,0.00013698,2]
[395125612,1764459035026,-554.14,0.00013698,2]
[395125613,1764459035035,-500.75382745,0.00013698,2]
[395125614,1764459035044,-500.31891356,0.00013698,2]
[395125615,1764459035054,-500.0,0.00013698,2]
[395125616,1764459035063,-500.0,0.00013698,2]
[395125617,1764459035072,-500.0,0.00013698,2]
[395125618,1764459035081,-500.0,0.00013698,2]
[395125619,1764459035090,-500.0,0.00013698,2]
[395125620,1764459035099,-631.40099599,0.00013698,2]
[395125621,1764459035109,-500.0,0.00013698,2]
[395125622,1764459035118,-500.0,0.00013698,2]
[395125623,1764459035127,-501.22690835,0.00013698,2]
[395125624,1764459035136,-500.0,0.00013698,2]
[395125625,1764459035145,-500.0,0.00013698,2]
[395125626,1764459035155,-500.0,0.00013698,2]
[395125627,1764459035164,-500.0,0.00013698,2]
[395125628,1764459035173,-500.0,0.00013698,2]
[395125629,1764459035182,-500.0,0.00013698,2]
[395125630,1764459035191,-500.0,0.00013698,2]
[395125631,1764459035200,-500.0,0.00013698,2]
[395125632,1764459035210,-435.53689258,0.00013698,2]
[395125633,1764459035219,-500.0,0.00013698,2]
[395125634,1764459035229,-500.0,0.00013698,2]
[395125635,1764459035239,-500.0,0.00013698,2]
[395125636,1764459035249,-500.0,0.00013698,2]
[395125637,1764459035258,-500.0,0.00013698,2]
[395125638,1764459035267,-500.0,0.00013698,2]
[395125639,1764459035277,-500.0,0.00013698,2]
[395125640,1764459035287,-500.0,0.00013698,2]
[395125641,1764459035297,-500.0,0.00013698,2]
[395125642,1764459035307,-500.0,0.00013698,2]
[395125643,1764459035317,-500.0,0.00013698,2]
[395125644,1764459035327,-634.01,0.00013698,2]
[395125645,1764459035336,-500.0,0.00013698,2]
[395125646,1764459035346,-500.0,0.00013698,2]
[395125647,1764459035355,-500.0,0.00013698,2]
[395125648,1764459035364,-525.29831339,0.00013698,2]
[395125649,1764459035373,-500.0,0.00013698,2]
[395125650,1764459035382,-500.0,0.00013698,2]
[395125651,1764459035392,-503.80394763,0.00013698,2]
[395125652,1764459035401,-500.0,0.00013698,2]
[395125653,1764459035411,-500.0,0.00013698,2]
[395125654,1764459035420,-500.0,0.00013698,2]
[395125655,1764459035429,-261.57722309,0.00013698,2]
[395125656,1764459035439,-500.0,0.00013698,2]
[395125657,1764459035448,-500.68663233,0.00013698,2]
[395125658,1764459035457,-501.51177061,0.00013698,2]
[395125659,1764459035467,-500.0,0.00013698,2]
[395125660,1764459035477,-500.0,0.00013698,2]
[395125661,1764459035487,-500.0,0.00013698,2]
[395125662,1764459035496,-500.0,0.00013698,2]
[395125663,1764459035506,-500.0,0.00013698,2]
[395125664,1764459035516,-355.35395316,0.00013698,2]
[395125665,1764459035526,-500.0,0.00013698,2]
[395125666,1764459035536,-500.0,0.00013698,2]
[395125667,1764459035547,-500.0,0.00013698,2]
[395125668,1764459035557,-500.0,0.00013698,2]
[395125669,1764459035570,-501.47380955,0.00013698,2]
[395125670,1764459035582,-500.0,0.00013698,2]
[395125671,1764459035592,-500.0,0.00013698,2]
[395125672,1764459035603,-632.65857096,0.00013698,2]
[395125673,1764459035613,-500.0,0.00013698,2]